fUSD/lending_fUSD_20240617
["ID","MTS","AMOUNT","RATE_DAILY","PERIOD"]
[329767594,1718656244761,-500.0,0.00021917,2]
[329767596,1718656244770,-500.0,0.00021917,2]
[329767598,1718656244779,-755.37,0.00021917,2]
[329767600,1718656244789,-500.0,0.00021917,2]
[329767602,1718656244799,-711.75,0.00021917,2]
[329767604,1718656244808,-591.17,0.00021917,2]
[329767606,1718656244817,-500.0,0.00021917,2]
[329767607,1718656244826,-703.85,0.00021917,2]
[329767610,1718656244836,-927.73,0.00021917,2]
[329767612,1718656244845,-500.0,0.00021917,2]
[329767614,1718656244854,-500.0,0.00021917,2]
[329767615,1718656244863,-1449.78,0.00021917,2]
[329767617,1718656244872,-630.54,0.00021917,2]
[329767619,1718656244881,-500.0,0.00021917,2]
[329767622,1718656244890,-500.0,0.00021917,2]
[329767623,1718656244899,-498.24673853,0.00021917,2]
[329767625,1718656244908,-501.74383782,0.00021917,2]
[329767627,1718656244918,-500.0,0.00021917,2]
[329767630,1718656244928,-1047.76,0.00021917,2]
[329767632,1718656244937,-532.35,0.00021917,2]
[329767634,1718656244947,-500.0,0.00021917,2]
[329767635,1718656244956,-1843.59,0.00021917,2]
[329767638,1718656244965,-500.0,0.00021917,2]
[329767640,1718656244974,-766.5,0.00021917,2]
[329767642,1718656244984,-500.0,0.00021917,2]
[329767644,1718656244993,-959.54,0.00021917,2]
[329767646,1718656245003,-500.0,0.00021917,2]
[329767648,1718656245012,-500.0,0.00021917,2]
[329767650,1718656245022,-977.59,0.00021917,2]
[329767652,1718656245032,-500.0,0.00021917,2]
[329767654,1718656245042,-500.0,0.00021917,2]
[329767656,1718656245051,-1034.93,0.00021917,2]
[329767658,1718656245060,-500.0,0.00021917,2]
[329767660,1718656245070,-680.05,0.00021917,2]
[329767662,1718656245079,-500.0,0.00021917,2]
[329767664,1718656245088,-500.0,0.00021917,2]
[329767666,1718656245097,-500.0,0.00021917,2]
[329767668,1718656245107,-500.0,0.00021917,2]
[329767670,1718656245115,-1021.99,0.00021917,2]
[329767672,1718656245124,-1541.83,0.00021917,2]
[329767674,1718656245134,-1323.61,0.00021917,2]
[329767676,1718656245142,-500.0,0.00021917,2]
[329767678,1718656245151,-500.0,0.00021917,2]
[329767680,1718656245160,-663.63,0.00021917,2]
[329767682,1718656245169,-500.0,0.00021917,2]
[329767684,1718656245179,-500.0,0.00021917,2]
[329767685,1718656245188,-500.0,0.00021917,2]
[329767687,1718656245197,-563.45,0.00021917,2]
[329767690,1718656245207,-556.85,0.00021917,2]
[329767692,1718656245216,-1331.71,0.00021917,2]
[329767694,1718656245226,-2170.88,0.00021917,2]
[329767696,1718656245235,-500.0,0.00021917,2]
[329767698,1718656245245,-631.39,0.00021917,2]
[329767700,1718656245254,-9243.17,0.00021917,2]
[329767701,1718656245263,-1236.11,0.00021917,2]
[329767703,1718656245272,-500.0,0.00021917,2]
[329767705,1718656245281,-573.14,0.00021917,2]
[329767708,1718656245290,-500.0,0.00021917,2]
[329767709,1718656245300,-500.0,0.00021917,2]
[329767711,1718656245309,-500.0,0.00021917,2]
[329767713,1718656245319,-607.81,0.00021917,2]
[329767715,1718656245332,-642.12,0.00021917,2]
[329767717,1718656245342,-1094.73,0.00021917,2]
[329767719,1718656245351,-683.29,0.00021917,2]
[329767721,1718656245360,-1510.95,0.00021917,2]
[329767723,1718656245370,-242.23561955,0.00021917,2]
[329767725,1718656245379,-500.0,0.00021917,2]
[329767727,1718656245389,-508.61,0.00021917,2]
[329767729,1718656245398,-1954.94,0.00021917,2]
[329767731,1718656245410,-919.96,0.00021917,2]
[329767733,1718656245419,-1000.0,0.00021917,2]
[329767735,1718656245428,-3344.58,0.00021917,2]
[329767737,1718656245437,-500.0,0.00021917,2]
[329767739,1718656245446,-1238.91,0.00021917,2]
[329767741,1718656245455,-696.57,0.00021917,2]
[329767743,1718656245464,-1884.76,0.00021917,2]
[329767745,1718656245473,-2560.58,0.00021917,2]
[329767747,1718656245483,-500.0,0.00021917,2]
[329767749,1718656245492,-500.0,0.00021917,2]
[329767751,1718656245501,-500.0,0.00021917,2]
[329767753,1718656245511,-500.0,0.00021917,2]
[329767755,1718656245520,-596.65,0.00021917,2]
[329767757,1718656245529,-780.35,0.00021917,2]
[329767759,1718656245538,-1580.67,0.00021917,2]
[329767761,1718656245547,-500.0,0.00021917,2]
[329767763,1718656245557,-883.89,0.00021917,2]
[329767765,1718656245567,-1646.72,0.00021917,2]
[329767767,1718656245576,-843.7,0.00021917,2]
[329767769,1718656245585,-500.0,0.00021917,2]
[329767771,1718656245594,-7007.47,0.00021917,2]
[329767773,1718656245604,-500.0,0.00021917,2]
[329767775,1718656245613,-500.0,0.00021917,2]
[329767777,1718656245622,-500.0,0.00021917,2]
[329767779,1718656245632,-589.77,0.00021917,2]
[329767781,1718656245641,-500.0,0.00021917,2]
[329767783,1718656245650,-500.0,0.00021917,2]
[329767785,1718656245659,-1030.45,0.00021917,2]
[329767787,1718656245668,-999.3,0.00021917,2]
[329767789,1718656245678,-2757.42,0.00021917,2]
[329767791,1718656245687,-2469.58,0.00021917,2]
[329767793,1718656245696,-500.0,0.00021917,2]
[329767795,1718656245705,-637.84924125,0.00021917,2]
[329767797,1718656245715,-508.86,0.00021917,2]
[329767799,1718656245724,-500.0,0.00021917,2]
[329767801,1718656245734,-500.0,0.00021917,2]
[329767803,1718656245743,-500.0,0.00021917,2]
[329767805,1718656245753,-1045.1,0.00021917,2]
[329767807,1718656245762,-7845.82,0.00021917,2]
[329767809,1718656245772,-500.0,0.00021917,2]
[329767811,1718656245781,-563.36672905,0.00021917,2]
[329767813,1718656245790,-500.0,0.00021917,2]
[329767815,1718656245799,-21286.89,0.00021917,2]
[329767817,1718656245808,-869.74,0.00021917,2]
[329767819,1718656245817,-5582.28,0.00021917,2]
[329767821,1718656245826,-381.61,0.00021917,2]
[329767823,1718656245836,-121.20471136,0.00021917,2]
[329767888,1718656246327,-809.46528864,0.00021917,2]
[329767890,1718656246341,-379.12550125,0.00021917,2]
[329767892,1718656246351,-1363.3334538,0.00021917,2]
[329767895,1718656246363,-18.6765462,0.00021917,2]
[329767897,1718656246373,-500.0,0.00021917,2]
[329767898,1718656246382,-111.28579614,0.00021917,2]
[329767905,1718656246511,-116.34635005,0.00021917,2]
[329767906,1718656246521,-383.65364995,0.00021917,2]
[329767907,1718656246533,-766.10635005,0.00021917,2]
[329767909,1718656246542,-500.0,0.00021917,2]
[329767911,1718656246552,-1960.12,0.00021917,2]
[329767912,1718656246561,-500.0,0.00021917,2]
[329767915,1718656246571,-500.0,0.00021917,2]
[329767917,1718656246581,-929.71,0.00021917,2]
[329767918,1718656246590,-890.19,0.00021917,2]
[329767921,1718656246600,-500.0,0.00021917,2]
[329767923,1718656246610,-125.42962471,0.00021917,2]
[329767925,1718656246622,-384.96070113,0.00021917,2]
[329767927,1718656246631,-2056.59,0.00021917,2]
[329767929,1718656246640,-500.0,0.00021917,2]
[329767931,1718656246649,-500.0,0.00021917,2]
[329767933,1718656246659,-979.66,0.00021917,2]
[329767935,1718656246668,-2139.87,0.00021917,2]
[329767937,1718656246677,-978.13,0.00021917,2]
[329767939,1718656246686,-3827.26148631,0.00021917,2]
[329767941,1718656246698,-406.44,0.00021917,2]
[329767945,1718656246729,-442.88999996,0.00021917,2]
[329767948,1718656246744,-655.85851373,0.00021917,2]
[329767950,1718656246754,-1100.04,0.00021917,2]
[329767952,1718656246763,-2806.51,0.00021917,2]
[329767976,1718656246772,-1702.46,0.00021917,2]
[329767980,1718656247008,-266.94371626,0.00021917,2]
[329767983,1718656247022,-233.05628374,0.00021917,2]
[329767984,1718656247031,-677.56,0.00021917,2]
[329767987,1718656247040,-1179.89903,0.00021917,2]
[329767989,1718656247052,-12727.24097,0.00021917,2]
[329767991,1718656247062,-211.65549778,0.00021917,2]
[329767993,1718656247071,-9826.82,0.00021917,2]
[329767995,1718656247081,-681.14,0.00021917,2]
[329767997,1718656247090,-1406.4,0.00021917,2]
[329767999,1718656247099,-716.24,0.00021917,2]
[329768001,1718656247108,-2695.75,0.00021917,2]
[329768003,1718656247118,-500.0,0.00021917,2]
[329768005,1718656247127,-2167.5,0.00021917,2]
[329768007,1718656247136,-500.0,0.00021917,2]
[329768009,1718656247145,-4223.12,0.00021917,2]
[329768011,1718656247154,-500.0,0.00021917,2]
[329768013,1718656247163,-1077.54,0.00021917,2]
[329768015,1718656247172,-790.84,0.00021917,2]
[329768017,1718656247182,-4155.0,0.00021917,2]
[329768019,1718656247191,-508.49,0.00021917,2]
[329768021,1718656247200,-505.18,0.00021917,2]
[329768022,1718656247209,-500.0,0.00021917,2]
[329768024,1718656247219,-500.0,0.00021917,2]
[329768026,1718656247228,-1308.3229741,0.00021917,2]
[329768029,1718656247257,-10.8770259,0.00021917,2]
[329768031,1718656247267,-2366.08,0.00021917,2]
[329768033,1718656247276,-500.0,0.00021917,2]
[329768035,1718656247285,-982.17,0.00021917,2]
[329768037,1718656247294,-1277.31,0.00021917,2]
[329768039,1718656247304,-10625.25,0.00021917,2]
[329768041,1718656247313,-7770.54,0.00021917,2]
[329768043,1718656247325,-2683.1,0.00021917,2]
[329768045,1718656247336,-500.0,0.00021917,2]
[329768047,1718656247346,-5512.91,0.00021917,2]
[329768049,1718656247355,-1208.93,0.00021917,2]
[329768051,1718656247365,-8451.81,0.00021917,2]
[329768053,1718656247375,-979.59,0.00021917,2]
[329768055,1718656247384,-1854.42,0.00021917,2]
[329768057,1718656247393,-500.0,0.00021917,2]
[329768059,1718656247403,-692.03,0.00021917,2]
[329768061,1718656247412,-1163.51,0.00021917,2]
[329768063,1718656247422,-4577.87,0.00021917,2]
[329768064,1718656247431,-500.0,0.00021917,2]
[329768066,1718656247440,-10555.04,0.00021917,2]
[329768068,1718656247450,-1009.88,0.00021917,2]
[329768070,1718656247459,-10230.46,0.00021917,2]
[329768072,1718656247468,-3353.65,0.00021917,2]
[329768074,1718656247478,-500.0,0.00021917,2]
[329768076,1718656247487,-500.0,0.00021917,2]
[329768078,1718656247496,-613.83,0.00021917,2]
[329768080,1718656247506,-500.0,0.00021917,2]
[329768082,1718656247516,-1671.91,0.00021917,2]
[329768084,1718656247525,-500.0,0.00021917,2]
[329768086,1718656247534,-500.0,0.00021917,2]
[329768088,1718656247543,-500.0,0.00021917,2]
[329768090,1718656247553,-500.0,0.00021917,2]
[329768092,1718656247562,-3978.91,0.00021917,2]
[329768094,1718656247573,-13402.15,0.00021917,2]
[329768096,1718656247582,-23139.87,0.00021917,2]
[329768098,1718656247591,-500.0,0.00021917,2]
[329768100,1718656247600,-21029.13,0.00021917,2]
[329768102,1718656247610,-6366.38,0.00021917,2]
[329768104,1718656247619,-5814.92,0.00021917,2]
[329768106,1718656247628,-645.79,0.00021917,2]
[329768108,1718656247637,-556.99,0.00021917,2]
[329768110,1718656247647,-945.23869718,0.00021917,2]
[329768112,1718656247659,-1574.63130282,0.00021917,2]
[329768114,1718656247668,-742.530967,0.00021917,2]
[329768116,1718656247679,-340.78144659,0.00021917,2]
[329768153,1718656248023,-650.96828781,0.00021917,2]
[329768155,1718656248035,-69.2792986,0.00021917,2]
[329768157,1718656248044,-10115.63384099,0.00021917,2]
[329768159,1718656248055,-1411.07615901,0.00021917,2]
[329768161,1718656248064,-500.0,0.00021917,2]
[329768163,1718656248075,-500.0,0.00021917,2]
[329768165,1718656248084,-610.96,0.00021917,2]
[329768167,1718656248092,-500.0,0.00021917,2]
[329768169,1718656248102,-307.29425992,0.00021917,2]
[329768172,1718656248121,-259.52574008,0.00021917,2]
[329768174,1718656248130,-726.38,0.00021917,2]
[329768176,1718656248140,-1238.37,0.00021917,2]
[329768178,1718656248149,-500.0,0.00021917,2]
[329768180,1718656248158,-511.24,0.00021917,2]
[329768182,1718656248167,-866.35,0.00021917,2]
[329768184,1718656248176,-1773.91,0.00021917,2]
[329768186,1718656248185,-724.8,0.00021917,2]
[329768188,1718656248194,-392.70297814,0.00021917,2]
[329768190,1718656248203,-119.74128177,0.00021917,2]
[329768192,1718656248214,-3493.71871823,0.00021917,2]
[329768194,1718656248223,-5104.9,0.00021917,2]
[329768196,1718656248232,-517.22664978,0.00021917,2]
[329768198,1718656248243,-590.75255629,0.00021917,2]
[329768200,1718656248255,-1448.64079393,0.00021917,2]
[329768202,1718656248264,-14330.29,0.00021917,2]
[329768204,1718656248273,-500.0,0.00021917,2]
[329768206,1718656248282,-4209.87062064,0.00021917,2]
[329768208,1718656248293,-409.04105604,0.00021917,2]
[329768210,1718656248304,-14435.04513219,0.00021917,2]
[329768213,1718656248316,-3292.164575,0.00021917,2]
[329768215,1718656248337,-4023.64861613,0.00021917,2]
[329768217,1718656248346,-1314.28,0.00021917,2]
[329768219,1718656248355,-500.0,0.00021917,2]
[329768221,1718656248363,-508.54,0.00021917,2]
[329768223,1718656248372,-500.0,0.00021917,2]
[329768225,1718656248382,-729.45,0.00021917,2]
[329768227,1718656248391,-500.0,0.00021917,2]
[329768229,1718656248401,-1319.53,0.00021917,2]
[329768231,1718656248410,-1897.98305877,0.00021917,2]
[329768233,1718656248424,-4566.38694123,0.00021917,2]
[329768235,1718656248433,-1855.61,0.00021917,2]
[329768237,1718656248443,-627.44603515,0.00021917,2]
[329768239,1718656248452,-500.0,0.00021917,2]
[329768241,1718656248461,-500.0,0.00021917,2]
[329768243,1718656248470,-1755.34,0.00021917,2]
[329768245,1718656248479,-500.0,0.00021917,2]
[329768247,1718656248490,-1543.72,0.00021917,2]
[329768249,1718656248500,-1623.08,0.00021917,2]
[329768251,1718656248509,-701.87,0.00021917,2]
[329768253,1718656248518,-500.0,0.00021917,2]
[329768255,1718656248527,-852.02,0.00021917,2]
[329768257,1718656248537,-3058.95,0.00021917,2]
[329768259,1718656248546,-778.07,0.00021917,2]
[329768261,1718656248555,-4159.27426854,0.00021917,2]
[329768265,1718656248583,-2704.64573146,0.00021917,2]
[329768267,1718656248592,-1771.36,0.00021917,2]
[329768269,1718656248602,-1785.5,0.00021917,2]
[329768271,1718656248611,-500.0,0.00021917,2]
[329768273,1718656248620,-500.0,0.00021917,2]
[329768275,1718656248630,-1519.52,0.00021917,2]
[329768277,1718656248639,-1913.99,0.00021917,2]
[329768279,1718656248648,-661.2,0.00021917,2]
[329768281,1718656248657,-500.0,0.00021917,2]
[329768283,1718656248667,-500.0,0.00021917,2]
[329768285,1718656248675,-553.52,0.00021917,2]
[329768287,1718656248685,-5001.91860584,0.00021917,2]
[329768289,1718656248696,-585.81080821,0.00021917,2]
[329768291,1718656248707,-1765.648,0.00021917,2]
[329768294,1718656248727,-32.07258595,0.00021917,2]
[329768296,1718656248736,-9175.43175761,0.00021917,2]
[329768298,1718656248748,-24778.56210654,0.00021917,2]
[329768301,1718656248760,-3095.34180605,0.00021917,2]
[329768303,1718656248771,-1102.66680609,0.00021917,2]
[329768305,1718656248782,-1288.76888271,0.00021917,2]
[329768397,1718656249806,-238.04287716,0.00021817,2]
[329768399,1718656249815,-6831.478641,0.00021917,2]
[329768401,1718656249825,-3343.18947963,0.00021917,2]
[329768403,1718656249836,-2403.57912576,0.00021917,2]
[329768408,1718656249870,-7696.52139461,0.00021917,2]
[329768410,1718656249880,-2016.81,0.00021917,2]
[329768412,1718656249889,-1703.7,0.00021917,2]
[329768414,1718656249899,-938.23,0.00021917,2]
[329768416,1718656249908,-500.0,0.00021917,2]
[329768418,1718656249917,-407.88321997,0.00021917,2]
[329768420,1718656249926,-4325.18,0.00021917,2]
[329768422,1718656249936,-4886.37,0.00021917,2]
[329768424,1718656249944,-5938.73,0.00021917,2]
[329768426,1718656249953,-589.2,0.00021917,2]
[329768428,1718656249963,-500.0,0.00021917,2]
[329768429,1718656249973,-938.29,0.00021917,2]
[329768430,1718656249982,-632.6,0.00021917,2]
[329768431,1718656249990,-4205.14,0.00021917,2]
[329768432,1718656250000,-500.0,0.00021917,2]
[329768433,1718656250009,-2134.47,0.00021917,2]
[329768434,1718656250018,-881.08,0.00021917,2]
[329768435,1718656250027,-5000.64,0.00021917,2]
[329768436,1718656250037,-500.0,0.00021917,2]
[329768437,1718656250047,-2366.73,0.00021917,2]
[329768438,1718656250056,-500.0,0.00021917,2]
[329768439,1718656250065,-500.0,0.00021917,2]
[329768440,1718656250076,-44919.17,0.00021917,2]
[329768441,1718656250085,-960.06,0.00021917,2]
[329768442,1718656250095,-513.46,0.00021917,2]
[329768443,1718656250104,-2170.43,0.00021917,2]
[329768444,1718656250114,-2099.45,0.00021917,2]
[329768445,1718656250123,-818.69,0.00021917,2]
[329768446,1718656250132,-1413.66,0.00021917,2]
[329768447,1718656250142,-665.63,0.00021917,2]
[329768448,1718656250151,-1120.91,0.00021917,2]
[329768449,1718656250160,-500.0,0.00021917,2]
[329768450,1718656250169,-7817.0,0.00021917,2]
[329768452,1718656250178,-500.0,0.00021917,2]
[329768454,1718656250187,-500.0,0.00021917,2]
[329768456,1718656250196,-5190.03,0.00021917,2]
[329768458,1718656250205,-780.66,0.00021917,2]
[329768460,1718656250215,-500.0,0.00021917,2]
[329768462,1718656250223,-17089.02,0.00021917,2]
[329768464,1718656250232,-500.0,0.00021917,2]
[329768466,1718656250241,-2907.47,0.00021917,2]
[329768468,1718656250250,-512.54,0.00021917,2]
[329768470,1718656250259,-500.0,0.00021917,2]
[329768472,1718656250268,-500.0,0.00021917,2]
[329768474,1718656250278,-14078.66,0.00021917,2]
[329768476,1718656250287,-500.0,0.00021917,2]
[329768478,1718656250296,-661.26,0.00021917,2]
[329768480,1718656250306,-3035.88,0.00021917,2]
[329768482,1718656250315,-1197.43,0.00021917,2]
[329768484,1718656250331,-500.0,0.00021917,2]
[329768486,1718656250339,-5313.12,0.00021917,2]
[329768488,1718656250348,-500.0,0.00021917,2]
[329768490,1718656250357,-500.0,0.00021917,2]
[329768492,1718656250366,-2397.88,0.00021917,2]
[329768494,1718656250377,-1877.79,0.00021917,2]
[329768496,1718656250386,-1822.7,0.00021917,2]
[329768498,1718656250395,-3839.57,0.00021917,2]
[329768500,1718656250404,-500.0,0.00021917,2]
[329768502,1718656250417,-500.0,0.00021917,2]
[329768504,1718656250426,-4125.35,0.00021917,2]
[329768506,1718656250435,-500.0,0.00021917,2]
[329768508,1718656250444,-3182.92,0.00021917,2]
[329768510,1718656250454,-11996.13,0.00021917,2]
[329768512,1718656250463,-547.69,0.00021917,2]
[329768514,1718656250472,-500.0,0.00021917,2]
[329768516,1718656250482,-500.0,0.00021917,2]
[329768518,1718656250491,-555.45,0.00021917,2]
[329768520,1718656250499,-500.0,0.00021917,2]
[329768522,1718656250509,-785.75,0.00021917,2]
[329768546,1718656250726,-3901.16,0.00021917,2]
[329768548,1718656250736,-500.0,0.00021917,2]
[329768550,1718656250745,-556.78,0.00021917,2]
[329768552,1718656250755,-602.21,0.00021917,2]
[329768554,1718656250764,-4980.37,0.00021917,2]
[329768556,1718656250774,-1142.62,0.00021917,2]
[329768558,1718656250783,-500.0,0.00021917,2]
[329768560,1718656250793,-9912.83,0.00021917,2]
[329768562,1718656250802,-500.0,0.00021917,2]
[329768564,1718656250812,-500.0,0.00021917,2]
[329768566,1718656250822,-3601.74,0.00021917,2]
[329768568,1718656250831,-500.0,0.00021917,2]
[329768570,1718656250841,-2385.49,0.00021917,2]
[329768572,1718656250850,-500.0,0.00021917,2]
[329768574,1718656250860,-1486.54,0.00021917,2]
[329768576,1718656250869,-1083.71,0.00021917,2]
[329768578,1718656250877,-500.0,0.00021917,2]
[329768580,1718656250886,-500.0,0.00021917,2]
[329768582,1718656250895,-500.0,0.00021917,2]
[329768584,1718656250905,-996.44,0.00021917,2]
[329768586,1718656250914,-500.0,0.00021917,2]
[329768588,1718656250923,-533.49,0.00021917,2]
[329768590,1718656250932,-1333.21428922,0.00021917,2]
[329768592,1718656250947,-890.31731708,0.00021917,2]
[329768594,1718656250958,-1388.6583937,0.00021917,2]
[329768596,1718656250967,-4057.97,0.00021917,2]
[329768598,1718656250977,-7116.87,0.00021917,2]
[329768600,1718656250987,-911.91,0.00021917,2]
[329768602,1718656250996,-500.0,0.00021917,2]
[329768604,1718656251005,-500.0,0.00021917,2]
[329768606,1718656251014,-500.0,0.00021917,2]
[329768608,1718656251023,-2051.81,0.00021917,2]
[329768610,1718656251033,-500.0,0.00021917,2]
[329768612,1718656251042,-500.0,0.00021917,2]
[329768614,1718656251051,-500.0,0.00021917,2]
[329768616,1718656251060,-2872.52,0.00021917,2]
[329768618,1718656251069,-1012.4,0.00021917,2]
[329768620,1718656251079,-1751.38,0.00021917,2]
[329768622,1718656251088,-1934.27,0.00021917,2]
[329768624,1718656251097,-631.4,0.00021917,2]
[329768626,1718656251107,-553.03,0.00021917,2]
[329768628,1718656251116,-1062.3,0.00021917,2]
[329768630,1718656251125,-5117.82,0.00021917,2]
[329768632,1718656251134,-1728.14,0.00021917,2]
[329768634,1718656251143,-1254.1,0.00021917,2]
[329768636,1718656251152,-984.52,0.00021917,2]
[329768638,1718656251161,-500.0,0.00021917,2]
[329768640,1718656251171,-1019.08,0.00021917,2]
[329768642,1718656251180,-646.18897005,0.00021917,2]
[329768644,1718656251189,-4119.08,0.00021917,2]
[329768646,1718656251198,-514.25,0.00021917,2]
[329768648,1718656251208,-4224.06,0.00021917,2]
[329768650,1718656251217,-1420.1,0.00021917,2]
[329768652,1718656251227,-3522.31,0.00021917,2]
[329768654,1718656251236,-1046.06,0.00021917,2]
[329768656,1718656251244,-5136.86,0.00021917,2]
[329768658,1718656251254,-500.0,0.00021917,2]
[329768660,1718656251264,-626.91,0.00021917,2]
[329768662,1718656251274,-500.0,0.00021917,2]
[329768664,1718656251283,-3965.55,0.00021917,2]
[329768666,1718656251292,-500.0,0.00021917,2]
[329768668,1718656251301,-500.0,0.00021917,2]
[329768670,1718656251310,-500.0,0.00021917,2]
[329768672,1718656251319,-501.63,0.00021917,2]
[329768674,1718656251331,-500.0,0.00021917,2]
[329768676,1718656251347,-500.0,0.00021917,2]
[329768678,1718656251357,-4003.94,0.00021917,2]
[329768680,1718656251366,-4548.58,0.00021917,2]
[329768682,1718656251375,-500.0,0.00021917,2]
[329768683,1718656251385,-2028.4,0.00021917,2]
[329768684,1718656251394,-261.43610471,0.00021917,2]
[329768685,1718656251403,-566.53,0.00021917,2]
[329768686,1718656251412,-500.0,0.00021917,2]
[329768687,1718656251421,-500.0,0.00021917,2]
[329768688,1718656251431,-132.23095446,0.00021917,2]
[329768689,1718656251443,-1447.06057883,0.00021917,2]
[329768690,1718656251461,-146.05846671,0.00021917,2]
[329768691,1718656251470,-1245.09,0.00021917,2]
[329768692,1718656251479,-500.0,0.00021917,2]
[329768693,1718656251488,-748.77,0.00021917,2]
[329768695,1718656251497,-500.0,0.00021917,2]
[329768697,1718656251507,-500.0,0.00021917,2]
[329768699,1718656251516,-1839.88,0.00021917,2]
[329768701,1718656251526,-500.0,0.00021917,2]
[329768703,1718656251535,-500.0,0.00021917,2]
[329768705,1718656251544,-82.29779325,0.00021918,2]
[329768708,1718656251556,-114.09220675,0.00021918,2]
[329768710,1718656251565,-250.0,0.00021918,2]
[329768712,1718656251576,-166.3398463,0.00022004,2]
[329768714,1718656251585,-186.33834045,0.00022091,2]
[329768716,1718656251594,-4940.04186337,0.00022091,2]
[329768718,1718656251603,-47128.77761372,0.00022191,13]
[329768721,1718656251619,-6478.043565,0.00022191,13]
[329768723,1718656251631,-895.73293621,0.00022191,13]
[329768783,1718656271129,308.92067343,0.0002219,60]
[329768790,1718656498400,572.75,0.00021589,30]
[329768792,1718656811130,4855908.95886309,0.000272,120]
[329768793,1718656866604,36942.23810838,0.00027,120]
[329768794,1718656866628,100000.0,0.00027,120]
[329768795,1718656929367,899535.69746212,0.00023,120]
[329768796,1718656929404,5000.0,0.00023,120]
[329768797,1718656929428,190812.11389091,0.00023,120]
[329768798,1718656929451,100000.0,0.00023,120]
[329768799,1718656929478,30000.0,0.00023,120]
[329768800,1718656929501,900000.0,0.00023,120]
[329768801,1718656929548,1000000.0,0.00023,120]
[329768802,1718656929575,92644.92,0.00023,120]
[329768803,1718656929600,949999.0,0.00023,120]
[329768804,1718656929627,250000.0,0.00023,120]
[329768805,1718656929655,25000.0,0.00023,120]
[329768806,1718656929683,776000.0,0.00023,120]
[329768807,1718656929737,4989700.0,0.00023,120]
[329768808,1718656929766,10000.0,0.00023,120]
[329768809,1718656929792,100000.0,0.00023,120]
[329768818,1718657097809,525.02,0.00021589,30]
[329768819,1718657237949,2500.0,0.00022,30]
[329768830,1718657432366,-300.0,0.00013899,2]
[329768831,1718657432375,-79.43752746,0.00013899,2]
[329768832,1718657432422,-70.56247254,0.00013899,2]
[329768833,1718657432431,-300.0,0.00013899,2]
[329768834,1718657432441,-7863.61738965,0.000139,2]
[329768835,1718657432450,-181.31051968,0.000139,2]
[329768836,1718657432459,-150.0,0.00013973,2]
[329768837,1718657432468,-207.48520993,0.0001399,2]
[329768838,1718657432477,-602.20224038,0.00013999,2]
[329768839,1718657432486,-43172.06308742,0.00014,2]
[329768840,1718657432498,-10696.78582365,0.00014,2]
[329768841,1718657432511,-2097.6944,0.00014,2]
[329768842,1718657432595,-1071.32430337,0.00014,2]
[329768843,1718657432607,-829.59060237,0.00014,2]
[329768844,1718657432619,-7639.856,0.00014,2]
[329768855,1718657438293,-529.12011047,0.00014,2]
[329768858,1718657438308,-12338.90693721,0.00014,2]
[329768863,1718657438348,-7927.92165245,0.00014,2]
[329768866,1718657438363,-70012.55288488,0.00014,2]
[329768870,1718657438377,-34735.88329317,0.00014,2]
[329768872,1718657438392,-10070.38581821,0.00014,2]